Workbook

Sheet Totals
A1: 2020 | D1: Your Name Here
A2: Simple Business Plan | B2: Fill in Yellow Boxes. OVER WRITE Samples! | D2: Blue Boxes autofill.
D3: Corner red arrows are notes… Hover over upper right corner for info
A4: Section 1 - 2019 Review | B4: Questions? Email Info@YourCoachingMatters.com
A5: List your primary 3 Life Intentions | B5: 1 | C5: 2 | D5: 3
A6: Progress Toward Each Scale 1-5 | B6: 1 - 2 - 3 - 4 - 5 | C6: 1 - 2 - 3 - 4 - 5 | D6: 1 - 2 - 3 - 4 - 5
A7: List your Standards of Integrity | B7: 1 | C7: 2 | D7: 3
A8: Up to 9 of them | B8: 4 | C8: 5 | D8: 6
A9: Need to do the Exercise again? Ask | B9: 7 | C9: 8 | D9: 9
A10: Total income paid or to be paid 2019 = | B10: 375000 | C10: OK to estimate
A11: Total business expenses paid or to be paid= | B11: 158000 | C11: OK to estimate
A12: Profit from real estate = | B12: =B10-B11 -> 217000
A13: Listing appointments = | B13: 42 | C13: =B27/B13 -> 80.95238095 | D13: # contacts/listing appt
A14: Listings taken = | B14: 36 | C14: =B14/B13 -> 0.8571428571 | D14: % taken
A15: Listings sold = | B15: 31 | C15: =B15/B14 -> 0.8611111111 | D15: % sold
A16: Buyer appointments = | B16: 99 | C16: OK to estimate
A17: Buyers closed = | B17: 22 | C17: =B15/B19 -> 0.5849056604 | D17: percent from listings sold
A18: Ratio of Buyer Appts to Closed = | B18: =B17/B16 -> 0.2222222222 | C18: =B17/B19 -> 0.4150943396 | D18: percent from buyer sales
A19: Total closed deals = | B19: =B15+B17 -> 53
A20: Average sales price = | B20: 295000 | C20: =B20*B19 -> 15635000 | D20: Total $ volume
A21: Average commission check = | B21: =B10/B19 -> 7075.471698 | C21: =B21/B20 -> 0.02398464982 | D21: Ave commission % you kept
A22: Average hours worked per week = | B22: 40 | C22: =B10/(B22*B25) -> 46.875 | D22: $$/hr INCOME over year
A23: Present pendings= | B23: 10 | C23: =B12/(B22*B25) -> 27.125 | D23: $$/hr PROFIT over year
A24: Present inventory = | B24: 5
A25: Total days worked (estimate)= | B25: 200 | C25: =B10/B27 -> 110.2941176 | D25: Income per contact
A26: Total contacts per work day (estimate) = | B26: 17
A27: Total Estimated contacts = | B27: =B26*B25 -> 3400 | C27: =B27/B19 -> 64.1509434 | D27: Number of contacts/closing
D28: Listings + Closings + Pendings =
A29: Look at your Listings, Pendings & Closings in 2019 for this Section!
A30: Section 2 … Sourcing Your Business | C30: Total = | D30: =B24+B19+B23 -> 68
A31: Client Source | B31: Number | C31: %
A32: FSBO | B32: 10 | C32: =B32/D30 -> 0.1470588235
A33: Expired | B33: 4 | C33: =B33/D30 -> 0.05882352941
A34: Zillow | B34: 2 | C34: =B34/D30 -> 0.02941176471
A35: Past Client | B35: 10 | C35: =B35/D30 -> 0.1470588235
A36: COI | B36: 11 | C36: =B36/D30 -> 0.1617647059
A37: Referral from PC/COI | B37: 12 | C37: =B37/D30 -> 0.1764705882
A38: Sign call | B38: 5 | C38: =B38/D30 -> 0.07352941176
A39: Mailer | B39: 5 | C39: =B39/D30 -> 0.07352941176
A40: FB | B40: 3 | C40: =B40/D30 -> 0.04411764706
A41: Website | B41: 1 | C41: =B41/D30 -> 0.01470588235
A42: Landing Pages | B42: 1 | C42: =B42/D30 -> 0.01470588235
A43: Referral with a Fee | B43: 4 | C43: =B43/D30 -> 0.05882352941
A44: =IFERROR(B44=D30,OK) -> TRUE | B44: =SUM(B32:B43) -> 68 | C44: =SUM(C32:C43) -> 1 | D44: If false, this isn't
D45: matching Section 1, so
D46: Check B19, B23 & B24
A47: Section 3 THE FUN PART! 2020 GOALS! | B47: Make it your BEST YEAR SO FAR!
A48: (General Rule: If your goal is over 25 deals you should have an assistant hired &
A49: in place by January 1. If over 75, you should have 2 MINIMUM & Team started)
A50: Closed deals goal = | B50: 75
A51: Average Sales Price= | B51: 310000 | C51: =B51*B50 -> 23250000 | D51: Volume Goal
A52: Average Commission = | B52: 0.023 | C52: =B52*B51 -> 7130 | D52: Average commission
A53: Income goal = | B53: =C52*B50 -> 534750 | C53: Exciting??
A54: Business Expenses | B54: 220000 | C54: Estimate
A55: Profit from Real Estate | B55: =B53-B54 -> 314750 | C55: Profit is the name of the game!
A56: % of 2020 Closings from Listings | B56: 0.6 | C56: Use last year's or put in a reasonable improvement
A57: % of 2020 Closings from Buyers | B57: =1-B56 -> 0.4 | C57: Use last year's or put in a reasonable improvement
A58: Listings Sold Goal = | B58: =B50*B56 -> 45 | C58: Auto calculates
A59: % of Listings taken that close | B59: 0.85 | C59: Estimate from C15 above
A60: Listings taken goal = | B60: =B58/B59 -> 52.94117647 | C60: Auto calculates
A61: % of Listing appointments taken | B61: 0.75 | C61: Estimate from C14 above
A62: Listing Appointment goal = | B62: =B60/B61 -> 70.58823529 | C62: Auto calculates
A63: Buyer sales goal = | B63: =B50*B57 -> 30 | C63: =B58+B63 -> 75 | D63: Total deals double checked
A64: Contact goal = | B64: 18 | C64: per day
A65: 2020 Planned Days Prospecting | B65: 200 | C65: =B64*B65 -> 3600 | D65: Contacts for next year
A66: Income per contact plannned for 2020 | B66: =B53/C65 -> 148.5416667 | C66: Auto calculates
A68: Section 4 CLEARLY DEFINE what you'll do differently (SAMPLE TO WRITE OVER) | D68: Click Here
A69: 1. Completely update Database Plan for entire year before Jan 1 & have in my schedule | E69: Change for YOUR needs…
A70: 2. Increase My DB's COI by XX people by XX date | E70: Just a few examples!
A71: 3. Add 5 handwritten notes daily to vendors, coop agents, leads, past clients | E71: You should over-write this section!
A72: 4. Increase total team contacts to 50 a day - 18 for me. Monitor at weekly meeting.
A73: 5. Make higher Quality Contacts by dropping low conversion source XX and adding ZZ. | F73: 2020 Planned Days Prospecting
A74: 6. Use Formula 1 minimum 4 days a week.
A75: 7. Change minimum standard to no further than 25 min from home/office
A76: 8. Create a commission/service program to compete with Discounters
A77: 9. Hire another assistant by Feb 1 to handle Marketing and DB Management
A78: 10. Take 2 YCM Courses by Summer
A80: Section 5 … Coaches Suggestions or Recommendations
A81: Fill in after talking with your Coach
